[Event "*** Titled Tuesday Blitz"]
[Site "Chess.com"]
[Date "2020.04.28"]
[Round "4"]
[White "DanielRensch"]
[Black "SahajGrover"]
[Result "0-1"]
[WhiteElo "2491"]
[BlackElo "2706"]
[TimeControl "180+1"]
[EndTime "10:38:52 PDT"]
[Termination "SahajGrover won by resignation"]

1. e4 {[%clk 0:02:53.6]} 1... c5 {[%clk 0:02:59.6]} 2. Nf3 {[%clk 0:02:53]} 2...
e6 {[%clk 0:03:00]} 3. d4 {[%clk 0:02:52.7]} 3... cxd4 {[%clk 0:03:00.9]} 4.
Nxd4 {[%clk 0:02:52.2]} 4... Nf6 {[%clk 0:03:01.5]} 5. Nc3 {[%clk 0:02:51.2]}
5... Nc6 {[%clk 0:03:01.8]} 6. Ndb5 {[%clk 0:02:49.6]} 6... Bc5 {[%clk
0:03:01.3]} 7. Nd6+ {[%clk 0:02:48.5]} 7... Ke7 {[%clk 0:03:01.3]} 8. Nxc8+
{[%clk 0:02:48.5]} 8... Rxc8 {[%clk 0:02:59.5]} 9. Bd3 {[%clk 0:02:49.4]} 9...
Qc7 {[%clk 0:02:51.3]} 10. O-O {[%clk 0:02:31.5]} 10... h5 {[%clk 0:02:48.7]}
11. Bg5 {[%clk 0:02:25.3]} 11... Kf8 {[%clk 0:02:08.4]} 12. Bxf6 {[%clk
0:02:22.5]} 12... gxf6 {[%clk 0:02:09.3]} 13. Kh1 {[%clk 0:02:12.7]} 13... Ne5
{[%clk 0:02:03.2]} 14. Be2 {[%clk 0:01:59.9]} 14... a6 {[%clk 0:01:02.2]} 15. f4
{[%clk 0:01:55]} 15... Ng6 {[%clk 0:01:02.3]} 16. Qd2 {[%clk 0:01:50.9]} 16...
Ke7 {[%clk 0:00:59.3]} 17. Rad1 {[%clk 0:01:48.5]} 17... b5 {[%clk 0:00:49.4]}
18. f5 {[%clk 0:01:46]} 18... Ne5 {[%clk 0:00:48.7]} 19. a3 {[%clk 0:01:40.7]}
19... Ng4 {[%clk 0:00:26.3]} 20. Bxg4 {[%clk 0:01:40]} 20... hxg4 {[%clk
0:00:27.2]} 21. g3 {[%clk 0:01:40.2]} 21... Rh3 {[%clk 0:00:27.5]} 22. Qf4
{[%clk 0:01:34.4]} 22... Rch8 {[%clk 0:00:20.7]} 23. Rd2 {[%clk 0:01:33.5]}
23... Qxf4 {[%clk 0:00:13.1]} 24. Rxf4 {[%clk 0:01:32.9]} 24... Be3 {[%clk
0:00:12.9]} 25. Rg2 {[%clk 0:01:26.2]} 25... Bxf4 {[%clk 0:00:12.6]} 26. gxf4
{[%clk 0:01:26.8]} 26... g3 {[%clk 0:00:13.5]} 27. Kg1 {[%clk 0:01:23.7]} 27...
gxh2+ {[%clk 0:00:13.8]} 28. Kh1 {[%clk 0:01:24]} 28... Rf3 {[%clk 0:00:14.4]}
0-1

[Event "*** Titled Tuesday Blitz"]
[Site "Chess.com"]
[Date "2020.04.28"]
[Round "4"]
[White "axvesik"]
[Black "Galiev_Azat"]
[Result "1-0"]
[WhiteElo "2470"]
[BlackElo "2285"]
[TimeControl "180+1"]
[EndTime "10:38:57 PDT"]
[Termination "axvesik won on time"]

1. e4 {[%clk 0:03:00.9]} 1... c5 {[%clk 0:02:59.1]} 2. Nf3 {[%clk 0:03:00.1]}
2... d6 {[%clk 0:02:59.3]} 3. d4 {[%clk 0:03:01]} 3... cxd4 {[%clk 0:02:59.3]}
4. Nxd4 {[%clk 0:03:01.9]} 4... Nf6 {[%clk 0:02:58.9]} 5. Nc3 {[%clk 0:03:02.8]}
5... a6 {[%clk 0:02:58.9]} 6. Be3 {[%clk 0:03:03]} 6... e5 {[%clk 0:02:59]} 7.
Nb3 {[%clk 0:03:03.4]} 7... Be6 {[%clk 0:02:58.6]} 8. f3 {[%clk 0:03:04.1]} 8...
Be7 {[%clk 0:02:58.7]} 9. Qd2 {[%clk 0:03:04.5]} 9... O-O {[%clk 0:02:58]} 10.
O-O-O {[%clk 0:03:05.1]} 10... Nbd7 {[%clk 0:02:57.6]} 11. g4 {[%clk 0:03:05.3]}
11... b5 {[%clk 0:02:57.7]} 12. g5 {[%clk 0:03:05.6]} 12... b4 {[%clk 0:02:58]}
13. gxf6 {[%clk 0:03:02.3]} 13... bxc3 {[%clk 0:02:55.8]} 14. Qxc3 {[%clk
0:03:02.9]} 14... Nxf6 {[%clk 0:02:52.6]} 15. Na5 {[%clk 0:03:03.2]} 15... Rc8
{[%clk 0:02:11.2]} 16. Nc6 {[%clk 0:02:55.6]} 16... Qd7 {[%clk 0:02:02.9]} 17.
Nxe7+ {[%clk 0:02:54.7]} 17... Qxe7 {[%clk 0:02:02.9]} 18. Qa5 {[%clk
0:02:55.3]} 18... d5 {[%clk 0:01:58.5]} 19. exd5 {[%clk 0:02:47.7]} 19... Nxd5
{[%clk 0:01:56.5]} 20. Rxd5 {[%clk 0:02:46.9]} 20... Bxd5 {[%clk 0:01:53.5]} 21.
Qxd5 {[%clk 0:02:47.4]} 21... Rfd8 {[%clk 0:01:51.7]} 22. Qe4 {[%clk 0:02:42.1]}
22... Qe6 {[%clk 0:01:29.4]} 23. Bd3 {[%clk 0:02:36.6]} 23... g6 {[%clk
0:01:25.3]} 24. Kb1 {[%clk 0:02:31.8]} 24... f5 {[%clk 0:01:21.7]} 25. Qa4
{[%clk 0:02:10.7]} 25... Rd6 {[%clk 0:00:39.7]} 26. b3 {[%clk 0:02:05.9]} 26...
Kg7 {[%clk 0:00:32.9]} 27. Re1 {[%clk 0:02:03.2]} 27... Qd5 {[%clk 0:00:24]} 28.
Bc1 {[%clk 0:01:46.3]} 28... Qc5 {[%clk 0:00:11.4]} 29. Bb2 {[%clk 0:01:41.7]}
1-0

[Event "*** Titled Tuesday Blitz"]
[Site "Chess.com"]
[Date "2020.04.28"]
[Round "4"]
[White "Lestofante90"]
[Black "AshotParvanyan"]
[Result "1-0"]
[WhiteElo "2662"]
[BlackElo "2467"]
[TimeControl "180+1"]
[EndTime "10:39:02 PDT"]
[Termination "Lestofante90 won on time"]

1. d4 {[%clk 0:03:00.9]} 1... Nf6 {[%clk 0:02:59.5]} 2. c4 {[%clk 0:03:01.3]}
2... g6 {[%clk 0:02:59.1]} 3. g3 {[%clk 0:03:01.6]} 3... Bg7 {[%clk 0:02:59.5]}
4. Bg2 {[%clk 0:03:02]} 4... O-O {[%clk 0:03:00]} 5. Nc3 {[%clk 0:03:02.5]} 5...
d6 {[%clk 0:03:00.2]} 6. Nf3 {[%clk 0:03:02.9]} 6... c5 {[%clk 0:02:59]} 7. dxc5
{[%clk 0:03:01]} 7... dxc5 {[%clk 0:02:58.5]} 8. Be3 {[%clk 0:02:58.1]} 8... Qa5
{[%clk 0:01:46.4]} 9. Qa4 {[%clk 0:02:46.5]} 9... Nc6 {[%clk 0:01:46.5]} 10. Qb5
{[%clk 0:02:41.6]} 10... Ng4 {[%clk 0:01:29.5]} 11. Bd2 {[%clk 0:02:36.6]} 11...
a6 {[%clk 0:00:34.5]} 12. Qxa5 {[%clk 0:02:23.1]} 12... Nxa5 {[%clk 0:00:35.4]}
13. b3 {[%clk 0:02:23]} 13... Nc6 {[%clk 0:00:34.9]} 14. h3 {[%clk 0:02:21.3]}
14... Nge5 {[%clk 0:00:25.3]} 15. O-O-O {[%clk 0:02:18.9]} 15... Bf5 {[%clk
0:00:18]} 16. Nxe5 {[%clk 0:02:18.2]} 16... Bxe5 {[%clk 0:00:18.2]} 17. g4
{[%clk 0:02:18.2]} 17... Be6 {[%clk 0:00:16.9]} 18. f4 {[%clk 0:02:14.4]} 18...
Bc7 {[%clk 0:00:12.7]} 19. Nd5 {[%clk 0:02:13.1]} 19... Bxd5 {[%clk 0:00:12.2]}
20. cxd5 {[%clk 0:02:11.5]} 20... Nd4 {[%clk 0:00:11.3]} 21. e3 {[%clk
0:02:10.3]} 21... Nb5 {[%clk 0:00:10.3]} 22. a4 {[%clk 0:02:08.8]} 22... Na7
{[%clk 0:00:07.6]} 23. e4 {[%clk 0:02:08.7]} 23... b5 {[%clk 0:00:07.5]} 24. e5
{[%clk 0:02:06.9]} 24... bxa4 {[%clk 0:00:07.1]} 25. bxa4 {[%clk 0:02:07.8]}
25... Rab8 {[%clk 0:00:06.9]} 26. Kc2 {[%clk 0:02:08.1]} 26... Rfd8 {[%clk
0:00:05.6]} 27. Rb1 {[%clk 0:02:08.1]} 27... Nc8 {[%clk 0:00:02.4]} 28. Bc3
{[%clk 0:02:08.6]} 28... a5 {[%clk 0:00:02]} 29. Rxb8 {[%clk 0:02:07.8]} 29...
Bxb8 {[%clk 0:00:02.9]} 30. Bxa5 {[%clk 0:02:08.7]} 30... Re8 {[%clk 0:00:02.3]}
31. Rb1 {[%clk 0:02:09.6]} 31... Ba7 {[%clk 0:00:02]} 32. Rb7 {[%clk 0:02:08.8]}
32... c4 {[%clk 0:00:02.1]} 33. Kc3 {[%clk 0:02:07.5]} 33... Be3 {[%clk
0:00:01.7]} 34. Kxc4 {[%clk 0:02:07]} 34... Bxf4 {[%clk 0:00:01.7]} 35. Kd4
{[%clk 0:02:07.1]} 35... Bg3 {[%clk 0:00:01.7]} 36. Bf1 {[%clk 0:02:05.2]} 36...
f6 {[%clk 0:00:02]} 37. e6 {[%clk 0:02:02.8]} 37... Be5+ {[%clk 0:00:01.9]} 38.
Ke3 {[%clk 0:02:01.6]} 38... Nd6 {[%clk 0:00:02.4]} 39. Ra7 {[%clk 0:02:01.5]}
39... Rb8 {[%clk 0:00:01.5]} 40. Rxe7 {[%clk 0:01:54.2]} 40... Rb3+ {[%clk
0:00:02]} 41. Kd2 {[%clk 0:01:54.4]} 1-0

[Event "*** Titled Tuesday Blitz"]
[Site "Chess.com"]
[Date "2020.04.28"]
[Round "4"]
[White "mattcolins2025"]
[Black "zabivol_mc"]
[Result "1-0"]
[WhiteElo "2305"]
[BlackElo "2442"]
[TimeControl "180+1"]
[EndTime "10:39:04 PDT"]
[Termination "mattcolins2025 won by resignation"]

1. d4 {[%clk 0:03:00.9]} 1... Nf6 {[%clk 0:02:59.8]} 2. c4 {[%clk 0:03:01.3]}
2... g6 {[%clk 0:03:00.5]} 3. Nc3 {[%clk 0:03:01.7]} 3... Bg7 {[%clk 0:03:01]}
4. e4 {[%clk 0:03:01.9]} 4... O-O {[%clk 0:03:00.2]} 5. Nf3 {[%clk 0:03:02.5]}
5... d6 {[%clk 0:03:00.8]} 6. Be2 {[%clk 0:03:02.8]} 6... Bg4 {[%clk 0:03:00.9]}
7. Ng1 {[%clk 0:03:02.3]} 7... Bxe2 {[%clk 0:02:58.8]} 8. Ngxe2 {[%clk
0:03:02.5]} 8... a6 {[%clk 0:02:49.4]} 9. f3 {[%clk 0:03:01.2]} 9... c6 {[%clk
0:02:41.9]} 10. Be3 {[%clk 0:03:00.9]} 10... b5 {[%clk 0:02:40.7]} 11. cxb5
{[%clk 0:02:59.9]} 11... axb5 {[%clk 0:02:39.9]} 12. b4 {[%clk 0:02:58]} 12...
Nbd7 {[%clk 0:02:34.5]} 13. O-O {[%clk 0:02:57.4]} 13... Nb6 {[%clk 0:02:34.3]}
14. Bf2 {[%clk 0:02:54.8]} 14... Nc4 {[%clk 0:02:34.3]} 15. a4 {[%clk
0:02:52.1]} 15... bxa4 {[%clk 0:02:18.4]} 16. Rxa4 {[%clk 0:02:51.1]} 16... Qc7
{[%clk 0:02:08.8]} 17. Qc2 {[%clk 0:02:40.4]} 17... Nd7 {[%clk 0:01:50]} 18.
Rfa1 {[%clk 0:02:37.5]} 18... Rxa4 {[%clk 0:01:48.9]} 19. Qxa4 {[%clk
0:02:35.5]} 19... Ndb6 {[%clk 0:01:44.2]} 20. Qb3 {[%clk 0:02:33.4]} 20... d5
{[%clk 0:01:38.9]} 21. b5 {[%clk 0:02:27.8]} 21... dxe4 {[%clk 0:01:35.2]} 22.
fxe4 {[%clk 0:02:27.3]} 22... cxb5 {[%clk 0:01:29.2]} 23. Nxb5 {[%clk
0:02:26.2]} 23... Qb7 {[%clk 0:01:27]} 24. Rc1 {[%clk 0:02:17.6]} 24... Qxe4
{[%clk 0:01:22.8]} 25. Ng3 {[%clk 0:02:00.4]} 25... Qd5 {[%clk 0:01:18.5]} 26.
Nc3 {[%clk 0:01:58.6]} 26... Qd7 {[%clk 0:01:14]} 27. d5 {[%clk 0:01:53.3]}
27... Bxc3 {[%clk 0:00:48.3]} 28. Rxc3 {[%clk 0:01:51.8]} 28... Rb8 {[%clk
0:00:21.4]} 29. Rxc4 {[%clk 0:01:48.9]} 29... Nxc4 {[%clk 0:00:09.8]} 30. Qxb8+
{[%clk 0:01:48.5]} 30... Kg7 {[%clk 0:00:10.6]} 31. Bd4+ {[%clk 0:01:41.5]}
31... f6 {[%clk 0:00:10.3]} 32. Qa7 {[%clk 0:01:40]} 32... Qxd5 {[%clk
0:00:08.3]} 33. Qxe7+ {[%clk 0:01:39.1]} 33... Kh6 {[%clk 0:00:09]} 34. Qf8+
{[%clk 0:01:37.1]} 34... Kg5 {[%clk 0:00:08]} 35. Qxf6+ {[%clk 0:01:37.3]} 35...
Kh6 {[%clk 0:00:08.1]} 36. Qh4+ {[%clk 0:01:36.7]} 1-0

[Event "*** Titled Tuesday Blitz"]
[Site "Chess.com"]
[Date "2020.04.28"]
[Round "4"]
[White "manitodeplomo"]
[Black "KrakenBeast"]
[Result "0-1"]
[WhiteElo "2603"]
[BlackElo "2425"]
[TimeControl "180+1"]
[EndTime "10:39:05 PDT"]
[Termination "KrakenBeast won on time"]

1. d4 {[%clk 0:02:56.5]} 1... Nf6 {[%clk 0:03:00]} 2. c4 {[%clk 0:02:55.4]} 2...
e6 {[%clk 0:03:00.4]} 3. Nf3 {[%clk 0:02:54.9]} 3... Bb4+ {[%clk 0:02:58.8]} 4.
Nbd2 {[%clk 0:02:54.4]} 4... b6 {[%clk 0:02:57.3]} 5. g3 {[%clk 0:02:53.5]} 5...
Bb7 {[%clk 0:02:55.6]} 6. Bg2 {[%clk 0:02:53.2]} 6... O-O {[%clk 0:02:48.9]} 7.
O-O {[%clk 0:02:53.1]} 7... d6 {[%clk 0:02:44.8]} 8. Qc2 {[%clk 0:02:50.9]} 8...
Bxd2 {[%clk 0:02:40.6]} 9. Qxd2 {[%clk 0:02:49.1]} 9... Ne4 {[%clk 0:02:40]} 10.
Qc2 {[%clk 0:02:48.8]} 10... Nd7 {[%clk 0:02:36]} 11. Ng5 {[%clk 0:02:47.6]}
11... Nxg5 {[%clk 0:02:25.3]} 12. Bxb7 {[%clk 0:02:48.5]} 12... Rb8 {[%clk
0:02:24.5]} 13. Bg2 {[%clk 0:02:47.1]} 13... e5 {[%clk 0:02:19.1]} 14. dxe5
{[%clk 0:02:36.2]} 14... dxe5 {[%clk 0:02:17.9]} 15. Be3 {[%clk 0:02:28.5]}
15... Ne6 {[%clk 0:02:14.3]} 16. Rad1 {[%clk 0:02:28.8]} 16... Qe7 {[%clk
0:02:12.9]} 17. Bc6 {[%clk 0:02:16.6]} 17... Rfd8 {[%clk 0:02:10.2]} 18. Qa4
{[%clk 0:01:59.8]} 18... Ndc5 {[%clk 0:01:58.8]} 19. Qxa7 {[%clk 0:01:58.5]}
19... Nd4 {[%clk 0:01:59.4]} 20. Bxd4 {[%clk 0:01:51.5]} 20... exd4 {[%clk
0:02:00.3]} 21. Rxd4 {[%clk 0:01:41.5]} 21... Rxd4 {[%clk 0:01:51.9]} 22. Qxb8+
{[%clk 0:01:40.6]} 22... Rd8 {[%clk 0:01:52.8]} 23. Qa7 {[%clk 0:01:40.2]} 23...
g6 {[%clk 0:01:46.2]} 24. e3 {[%clk 0:01:27.2]} 24... Rd2 {[%clk 0:01:43.4]} 25.
b4 {[%clk 0:01:14.8]} 25... Nd3 {[%clk 0:01:42]} 26. a3 {[%clk 0:00:46.1]} 26...
Nxf2 {[%clk 0:01:38.4]} 27. Qa8+ {[%clk 0:00:07.6]} 27... Kg7 {[%clk 0:01:37.7]}
28. Bd5 {[%clk 0:00:07.3]} 28... Qxe3 {[%clk 0:01:35.1]} 29. Qc8 {[%clk
0:00:03.1]} 29... Ng4+ {[%clk 0:01:27.2]} 0-1

[Event "*** Titled Tuesday Blitz"]
[Site "Chess.com"]
[Date "2020.04.28"]
[Round "4"]
[White "Valuebet2000"]
[Black "Justinz"]
[Result "0-1"]
[WhiteElo "2568"]
[BlackElo "2253"]
[TimeControl "180+1"]
[EndTime "10:39:07 PDT"]
[Termination "Justinz won by resignation"]

1. d4 {[%clk 0:03:00.9]} 1... Nf6 {[%clk 0:02:59]} 2. c4 {[%clk 0:02:58.8]} 2...
e6 {[%clk 0:02:58.8]} 3. Nc3 {[%clk 0:02:58.7]} 3... Bb4 {[%clk 0:02:58.1]} 4.
Nf3 {[%clk 0:02:59.1]} 4... O-O {[%clk 0:02:54.9]} 5. Bg5 {[%clk 0:02:58.7]}
5... c5 {[%clk 0:02:53.9]} 6. Rc1 {[%clk 0:02:46.4]} 6... h6 {[%clk 0:02:52.5]}
7. Bh4 {[%clk 0:02:45.9]} 7... d6 {[%clk 0:02:46.1]} 8. e3 {[%clk 0:02:42.2]}
8... Nbd7 {[%clk 0:02:45.9]} 9. Bd3 {[%clk 0:02:40.6]} 9... a6 {[%clk 0:02:39]}
10. O-O {[%clk 0:02:39.8]} 10... Bxc3 {[%clk 0:02:34.6]} 11. Rxc3 {[%clk
0:02:39.5]} 11... e5 {[%clk 0:02:32.7]} 12. dxe5 {[%clk 0:02:24.7]} 12... dxe5
{[%clk 0:02:31.8]} 13. Nd2 {[%clk 0:02:24.6]} 13... Qc7 {[%clk 0:02:29.7]} 14.
Ne4 {[%clk 0:02:17.2]} 14... Qc6 {[%clk 0:02:19.1]} 15. Qf3 {[%clk 0:02:04.9]}
15... Qe6 {[%clk 0:02:02.6]} 16. Bxf6 {[%clk 0:01:59.5]} 16... Nxf6 {[%clk
0:02:02.1]} 17. Nxc5 {[%clk 0:01:55.2]} 17... Qe7 {[%clk 0:02:01.2]} 18. Ne4
{[%clk 0:01:53.9]} 18... Nd7 {[%clk 0:02:01.2]} 19. Ng3 {[%clk 0:01:44.1]} 19...
g6 {[%clk 0:02:00.9]} 20. Be4 {[%clk 0:01:27.3]} 20... Nf6 {[%clk 0:01:59.9]}
21. Bd5 {[%clk 0:01:18.8]} 21... Bg4 {[%clk 0:01:55.7]} 22. Nf5 {[%clk
0:01:00.8]} 22... Bxf5 {[%clk 0:01:50.1]} 23. e4 {[%clk 0:00:59.7]} 23... Be6
{[%clk 0:01:48.9]} 24. Rd1 {[%clk 0:00:58.5]} 24... Rad8 {[%clk 0:01:48.6]} 25.
h3 {[%clk 0:00:57.8]} 25... Kg7 {[%clk 0:01:48.5]} 26. Rcd3 {[%clk 0:00:57.5]}
26... Nh5 {[%clk 0:01:45.7]} 27. R3d2 {[%clk 0:00:51.4]} 27... Nf4 {[%clk
0:01:44.4]} 28. Kh2 {[%clk 0:00:49.7]} 28... Rd6 {[%clk 0:01:35.5]} 29. g3
{[%clk 0:00:34.3]} 29... Nxh3 {[%clk 0:01:28.9]} 30. Bxe6 {[%clk 0:00:31.5]}
30... Rxd2 {[%clk 0:01:28.6]} 31. Rxd2 {[%clk 0:00:31.7]} 31... Ng5 {[%clk
0:01:23.3]} 32. Qc3 {[%clk 0:00:29.5]} 32... Qxe6 {[%clk 0:01:22.2]} 33. Rd5
{[%clk 0:00:29.6]} 33... Re8 {[%clk 0:01:15.5]} 34. f4 {[%clk 0:00:29.6]} 34...
Nxe4 {[%clk 0:01:14.5]} 35. Qe3 {[%clk 0:00:27.1]} 35... Nf6 {[%clk 0:01:13.2]}
36. Rxe5 {[%clk 0:00:26.9]} 36... Ng4+ {[%clk 0:01:12.7]} 0-1

[Event "*** Titled Tuesday Blitz"]
[Site "Chess.com"]
[Date "2020.04.28"]
[Round "4"]
[White "Confer77"]
[Black "731291"]
[Result "0-1"]
[WhiteElo "2481"]
[BlackElo "2680"]
[TimeControl "180+1"]
[EndTime "10:39:10 PDT"]
[Termination "731291 won by resignation"]

1. d4 {[%clk 0:02:59.9]} 1... Nf6 {[%clk 0:02:58.5]} 2. Nc3 {[%clk 0:02:59.7]}
2... d5 {[%clk 0:02:57.8]} 3. Bf4 {[%clk 0:02:59.8]} 3... a6 {[%clk 0:02:57]} 4.
e3 {[%clk 0:02:59]} 4... e6 {[%clk 0:02:57.2]} 5. g4 {[%clk 0:02:59.2]} 5... Bd6
{[%clk 0:02:57.1]} 6. Qf3 {[%clk 0:02:45.6]} 6... O-O {[%clk 0:02:48]} 7. g5
{[%clk 0:02:44.8]} 7... Nfd7 {[%clk 0:02:46.4]} 8. O-O-O {[%clk 0:02:43.4]} 8...
b5 {[%clk 0:02:45.4]} 9. h4 {[%clk 0:02:41.2]} 9... Bb7 {[%clk 0:02:42.6]} 10.
Qg3 {[%clk 0:02:30.8]} 10... Bxf4 {[%clk 0:02:41.6]} 11. exf4 {[%clk 0:02:29.3]}
11... c5 {[%clk 0:02:41.2]} 12. Nf3 {[%clk 0:02:23]} 12... Nc6 {[%clk
0:02:39.1]} 13. h5 {[%clk 0:02:21.4]} 13... b4 {[%clk 0:02:09.5]} 14. Na4 {[%clk
0:02:03.5]} 14... Nxd4 {[%clk 0:02:02.1]} 15. Nxd4 {[%clk 0:02:02.2]} 15... cxd4
{[%clk 0:02:03]} 16. Bd3 {[%clk 0:01:49]} 16... Bc6 {[%clk 0:02:02.3]} 17. b3
{[%clk 0:01:40.7]} 17... Bxa4 {[%clk 0:02:00.8]} 18. bxa4 {[%clk 0:01:41.6]}
18... Nc5 {[%clk 0:02:00.6]} 19. Bxh7+ {[%clk 0:01:29.7]} 19... Kxh7 {[%clk
0:02:00.3]} 20. g6+ {[%clk 0:01:29.1]} 20... Kh6 {[%clk 0:01:29.6]} 21. Rxd4
{[%clk 0:01:18.3]} 21... Ne4 {[%clk 0:01:18.1]} 22. Qe3 {[%clk 0:01:14.9]} 22...
f5 {[%clk 0:01:13.5]} 23. f3 {[%clk 0:01:09.6]} 23... Nc3 {[%clk 0:01:10]} 24.
Qxe6 {[%clk 0:01:05.1]} 24... Re8 {[%clk 0:01:03.8]} 25. Qxf5 {[%clk 0:00:53.4]}
25... Ne2+ {[%clk 0:01:03.8]} 26. Kb1 {[%clk 0:00:54.1]} 26... Nxd4 {[%clk
0:01:04.7]} 27. Qd3 {[%clk 0:00:50]} 27... Qf6 {[%clk 0:01:03.5]} 28. f5 {[%clk
0:00:47.4]} 28... Nxf5 {[%clk 0:01:03.1]} 29. Rg1 {[%clk 0:00:44.9]} 29... Re3
{[%clk 0:00:59.3]} 30. Qxd5 {[%clk 0:00:40]} 30... Rae8 {[%clk 0:00:57.9]} 31.
Qc4 {[%clk 0:00:38.7]} 31... Re1+ {[%clk 0:00:56.8]} 0-1

[Event "*** Titled Tuesday Blitz"]
[Site "Chess.com"]
[Date "2020.04.28"]
[Round "4"]
[White "Eliwood44"]
[Black "harvsp123"]
[Result "0-1"]
[WhiteElo "2317"]
[BlackElo "2528"]
[TimeControl "180+1"]
[EndTime "10:39:12 PDT"]
[Termination "harvsp123 won by resignation"]

1. d4 {[%clk 0:03:00.9]} 1... g6 {[%clk 0:02:58.9]} 2. e4 {[%clk 0:02:55.5]}
2... Bg7 {[%clk 0:02:59.8]} 3. Nc3 {[%clk 0:02:54.7]} 3... d6 {[%clk 0:02:58]}
4. Be3 {[%clk 0:02:54.4]} 4... a6 {[%clk 0:02:56.2]} 5. a4 {[%clk 0:02:53.8]}
5... Nc6 {[%clk 0:02:54.9]} 6. h3 {[%clk 0:02:51.5]} 6... e5 {[%clk 0:02:52.8]}
7. dxe5 {[%clk 0:02:50.5]} 7... Nxe5 {[%clk 0:02:51.2]} 8. f4 {[%clk 0:02:50.8]}
8... Nc6 {[%clk 0:02:49.1]} 9. Nf3 {[%clk 0:02:30.8]} 9... Nf6 {[%clk
0:02:49.3]} 10. Bc4 {[%clk 0:02:21.8]} 10... O-O {[%clk 0:02:48.6]} 11. O-O
{[%clk 0:02:20.4]} 11... Be6 {[%clk 0:02:38.6]} 12. Bxe6 {[%clk 0:02:19.2]}
12... fxe6 {[%clk 0:02:39.5]} 13. Qe2 {[%clk 0:02:04.7]} 13... Qe7 {[%clk
0:02:34.8]} 14. Rad1 {[%clk 0:02:01.9]} 14... Rad8 {[%clk 0:02:35]} 15. Bc1
{[%clk 0:01:51.1]} 15... Kh8 {[%clk 0:02:33.5]} 16. Qc4 {[%clk 0:01:43.4]} 16...
Nh5 {[%clk 0:02:25.6]} 17. Ng5 {[%clk 0:01:40.3]} 17... Rde8 {[%clk 0:02:13]}
18. Ne2 {[%clk 0:01:14.2]} 18... Nf6 {[%clk 0:01:57.1]} 19. Ng3 {[%clk
0:01:00.8]} 19... d5 {[%clk 0:01:56.1]} 20. Qe2 {[%clk 0:00:55.1]} 20... Qc5+
{[%clk 0:01:37]} 21. Kh2 {[%clk 0:00:47.4]} 21... e5 {[%clk 0:01:18.2]} 22. fxe5
{[%clk 0:00:41.6]} 22... Nxe5 {[%clk 0:01:10.3]} 23. Be3 {[%clk 0:00:32.9]}
23... Qxe3 {[%clk 0:00:55.9]} 24. Qxe3 {[%clk 0:00:33.5]} 24... Nfg4+ {[%clk
0:00:56.4]} 25. Kh1 {[%clk 0:00:32.7]} 25... Nxe3 {[%clk 0:00:55]} 26. Rxf8+
{[%clk 0:00:32.4]} 26... Rxf8 {[%clk 0:00:51.3]} 0-1

[Event "*** Titled Tuesday Blitz"]
[Site "Chess.com"]
[Date "2020.04.28"]
[Round "4"]
[White "jtayar88"]
[Black "godsgonnacutudown"]
[Result "0-1"]
[WhiteElo "2557"]
[BlackElo "2361"]
[TimeControl "180+1"]
[EndTime "10:39:12 PDT"]
[Termination "godsgonnacutudown won on time"]

1. e4 {[%clk 0:02:52.8]} 1... c5 {[%clk 0:02:59.4]} 2. Nf3 {[%clk 0:02:51.6]}
2... d6 {[%clk 0:03:00]} 3. d4 {[%clk 0:02:51.4]} 3... cxd4 {[%clk 0:03:00.6]}
4. Nxd4 {[%clk 0:02:52.3]} 4... Nf6 {[%clk 0:03:01.3]} 5. Nc3 {[%clk 0:02:52.8]}
5... Nc6 {[%clk 0:03:01.6]} 6. Bc4 {[%clk 0:02:51.7]} 6... Qb6 {[%clk
0:03:01.4]} 7. Be3 {[%clk 0:02:49.5]} 7... Qxb2 {[%clk 0:03:01]} 8. Ndb5 {[%clk
0:02:49]} 8... Bg4 {[%clk 0:02:58.3]} 9. f3 {[%clk 0:02:43.7]} 9... Qb4 {[%clk
0:02:57.8]} 10. Bd3 {[%clk 0:02:17]} 10... Be6 {[%clk 0:02:41]} 11. Nc7+ {[%clk
0:02:08.5]} 11... Kd7 {[%clk 0:02:41.3]} 12. Bd2 {[%clk 0:02:02.3]} 12... Rb8
{[%clk 0:02:38.8]} 13. Rb1 {[%clk 0:01:49.8]} 13... Qc5 {[%clk 0:02:23.2]} 14.
Rb5 {[%clk 0:01:38.4]} 14... Qd4 {[%clk 0:02:20.7]} 15. Nxe6 {[%clk 0:01:21.7]}
15... Kxe6 {[%clk 0:02:19.2]} 16. Qb1 {[%clk 0:01:11.1]} 16... Ne5 {[%clk
0:02:13.1]} 17. Ne2 {[%clk 0:00:57.4]} 17... Nxd3+ {[%clk 0:02:02.2]} 18. cxd3
{[%clk 0:00:58.3]} 18... Qa4 {[%clk 0:02:02.7]} 19. Ra5 {[%clk 0:00:53.8]} 19...
Qe8 {[%clk 0:01:59]} 20. Rxa7 {[%clk 0:00:42.7]} 20... Nd7 {[%clk 0:01:58.7]}
21. Nd4+ {[%clk 0:00:23.1]} 21... Kf6 {[%clk 0:01:58.2]} 22. g4 {[%clk
0:00:20.6]} 22... e5 {[%clk 0:01:58.3]} 23. g5+ {[%clk 0:00:19.9]} 23... Kg6
{[%clk 0:01:55.3]} 24. Nf5 {[%clk 0:00:19.6]} 24... d5 {[%clk 0:01:41.6]} 25. h4
{[%clk 0:00:19.1]} 25... dxe4 {[%clk 0:01:41.8]} 26. h5+ {[%clk 0:00:16.2]}
26... Kxf5 {[%clk 0:01:39.2]} 27. dxe4+ {[%clk 0:00:16.6]} 27... Ke6 {[%clk
0:01:39.1]} 28. Qb3+ {[%clk 0:00:14.6]} 28... Ke7 {[%clk 0:01:39.1]} 29. O-O
{[%clk 0:00:09.4]} 29... f6 {[%clk 0:01:39.2]} 30. Bb4+ {[%clk 0:00:09.2]} 30...
Kd8 {[%clk 0:01:39.7]} 31. Rd1 {[%clk 0:00:08.4]} 31... Bxb4 {[%clk 0:01:35.6]}
32. Qxb4 {[%clk 0:00:09.3]} 32... Qe7 {[%clk 0:01:36.1]} 33. Qb6+ {[%clk
0:00:08.7]} 33... Ke8 {[%clk 0:01:36.2]} 34. Qc7 {[%clk 0:00:09.6]} 34... Qc5+
{[%clk 0:01:35.8]} 35. Qxc5 {[%clk 0:00:08]} 35... Nxc5 {[%clk 0:01:36.5]} 0-1